fUST/lending_fUST_20250604
["ID","MTS","AMOUNT","RATE_DAILY","PERIOD"]
[364137558,1749016238292,-1483.92774692,0.00021999,2]
[364137559,1749016238301,-500.0,0.00021999,2]
[364137560,1749016238311,-1483.92774692,0.00021999,2]
[364137561,1749016238320,-500.0,0.00021999,2]
[364137562,1749016238330,-500.0,0.00021999,2]
[364137563,1749016238340,-1483.92774692,0.00021999,2]
[364137564,1749016238352,-500.0,0.00021999,2]
[364137565,1749016238362,-1483.92774692,0.00021999,2]
[364137566,1749016238372,-500.0,0.00021999,2]
[364137567,1749016238382,-500.0,0.00021999,2]
[364137568,1749016238392,-500.0,0.00021999,2]
[364137569,1749016238402,-1483.92774692,0.00021999,2]
[364137570,1749016238413,-500.0,0.00021999,2]
[364137571,1749016238423,-500.0,0.00021999,2]
[364137572,1749016238433,-1483.92774692,0.00021999,2]
[364137573,1749016238444,-500.0,0.00021999,2]
[364137574,1749016238454,-500.0,0.00021999,2]
[364137575,1749016238465,-500.0,0.00021999,2]
[364137576,1749016238475,-1483.92774692,0.00021999,2]
[364137577,1749016238485,-500.0,0.00021999,2]
[364137578,1749016238494,-1483.92774692,0.00021999,2]
[364137579,1749016238503,-500.0,0.00021999,2]
[364137580,1749016238516,-500.0,0.00021999,2]
[364137581,1749016238526,-1483.92774692,0.00021999,2]
[364137582,1749016238535,-500.0,0.00021999,2]
[364137583,1749016238545,-500.0,0.00021999,2]
[364137584,1749016238555,-500.0,0.00021999,2]
[364137585,1749016238565,-500.0,0.00021999,2]
[364137586,1749016238574,-1446.29919554,0.00021999,2]
[364137587,1749016238678,-37.62855138,0.00021999,2]
[364137588,1749016238688,-500.0,0.00021999,2]
[364137589,1749016238698,-500.0,0.00021999,2]
[364137590,1749016238708,-1483.92774692,0.00021999,2]
[364137591,1749016238719,-1483.92774692,0.00021999,2]
[364137592,1749016238728,-500.0,0.00021999,2]
[364137593,1749016238739,-1483.92774692,0.00021999,2]
[364137594,1749016238748,-1483.92774692,0.00021999,2]
[364137595,1749016238758,-500.0,0.00021999,2]
[364137596,1749016238768,-500.0,0.00021999,2]
[364137597,1749016238778,-1483.92774692,0.00021999,2]
[364137598,1749016238787,-1483.92774692,0.00021999,2]
[364137599,1749016238798,-1483.92774692,0.00021999,2]
[364137600,1749016238808,-1483.92774692,0.00021999,2]
[364137601,1749016238818,-1483.92774692,0.00021999,2]
[364137602,1749016238828,-1483.92774692,0.00021999,2]
[364137603,1749016238838,-1483.92774692,0.00021999,2]
[364137604,1749016238848,-1483.92774692,0.00021999,2]
[364137605,1749016238859,-1483.92774692,0.00021999,2]
[364137606,1749016238869,-1483.92774692,0.00021999,2]
[364137607,1749016238879,-1483.92774692,0.00021999,2]
[364137608,1749016238889,-1483.92774692,0.00021999,2]
[364137609,1749016238899,-1483.92774692,0.00021999,2]
[364137610,1749016238909,-1483.92774692,0.00021999,2]
[364137611,1749016238918,-1483.92774692,0.00021999,2]
[364137612,1749016238928,-1483.92774692,0.00021999,2]
[364137613,1749016238938,-1483.92774692,0.00021999,2]
[364137614,1749016238947,-122.77894503,0.00021999,2]
[364137642,1749016240325,-770.67,0.00021999,2]
[364137661,1749016245165,-252.97,0.0002199,10]
[364137662,1749016245175,-118.35089169,0.00021999,2]
[364137698,1749016246059,-440.0,0.00019609,2]
[364137699,1749016246070,-410.0,0.00019883,2]
[364137700,1749016246080,-472.1279102,0.00021999,2]
[364137701,1749016246091,-1483.92774692,0.00021999,2]
[364137702,1749016246102,-1483.92774692,0.00021999,2]
[364137703,1749016246112,-6584.7973517,0.00021999,2]
[364137704,1749016246121,-10245.75218853,0.00022,7]
[364138377,1749016254397,198.314874,0.00013699,2]
[364138451,1749016290862,500.0,0.00024658,120]
[364138454,1749016352805,500.0,0.00024658,120]
[364138613,1749016364043,500.0,0.00024658,120]
[364138837,1749016388410,280.07893,0.00024658,120]
[364138945,1749016563682,514.211,0.00024657,120]
[364138946,1749016584173,1147.10928328,0.00024658,120]
[364138947,1749016584676,1351.9,0.00024658,120]
[364138948,1749016585132,1480.614,0.00024127,120]
[364138950,1749016615554,500.0,0.00022087,120]
[364138951,1749016616315,500.0,0.00022087,120]
[364138952,1749016617090,500.0,0.00022087,120]
[364138953,1749016617857,500.0,0.00022087,120]
[364138955,1749016618611,500.0,0.00022087,120]
[364138956,1749016619372,500.0,0.00022087,120]
[364138957,1749016620151,500.0,0.00022087,120]
[364138958,1749016620929,500.0,0.00022087,120]
[364138959,1749016621712,500.0,0.00022087,120]
[364138960,1749016622486,500.0,0.00022087,120]
[364138961,1749016623254,500.0,0.00022087,120]
[364138963,1749016624025,500.0,0.00022087,120]
[364138965,1749016624790,500.0,0.00022087,120]
[364138967,1749016625666,500.0,0.00022087,120]
[364138968,1749016626613,500.0,0.00022087,120]
[364138969,1749016627406,500.0,0.00022087,120]
[364138970,1749016628183,500.0,0.00022087,120]
[364138971,1749016628955,500.0,0.00022087,120]
[364138972,1749016629738,500.0,0.00022087,120]
[364138973,1749016630496,500.0,0.00022087,120]
[364138974,1749016631767,500.0,0.00022087,120]
[364138975,1749016632549,500.0,0.00022087,120]
[364138976,1749016633353,500.0,0.00022087,120]
[364138977,1749016634199,500.0,0.00022087,120]
[364138978,1749016635017,500.0,0.00022087,120]
[364138979,1749016635933,500.0,0.00022087,120]
[364138980,1749016636579,500.0,0.00022087,120]
[364138981,1749016637353,500.0,0.00022087,120]
[364138982,1749016638124,500.0,0.00022087,120]
[364138983,1749016639388,500.0,0.00022087,120]
[364138984,1749016641542,500.0,0.00022087,120]
[364138985,1749016642133,500.0,0.00022087,120]
[364138986,1749016642908,500.0,0.00022087,120]
[364138987,1749016643702,500.0,0.00022087,120]
[364138988,1749016644522,500.0,0.00022087,120]
[364138989,1749016645315,500.0,0.00022087,120]
[364138990,1749016646215,500.0,0.00022087,120]
[364138991,1749016646915,500.0,0.00022087,120]
[364138992,1749016647954,500.0,0.00022087,120]
[364138993,1749016648720,500.0,0.00022087,120]
[364138994,1749016649511,500.0,0.00022087,120]
[364138995,1749016650341,500.0,0.00022087,120]
[364138996,1749016651137,500.0,0.00022087,120]
[364138997,1749016651905,500.0,0.00022087,120]
[364138998,1749016652680,500.0,0.00022087,120]
[364138999,1749016654650,316.53,0.00022087,120]
[364139003,1749016689723,164.40530346,0.00024127,120]
[364139004,1749016692105,175.14203978,0.00024127,120]
[364139005,1749016720459,500.0,0.00022087,120]
[364139008,1749016803329,1656.42,0.00021918,60]
[364139014,1749016809675,164.40530345,0.00024127,120]
[364139018,1749016881070,151.0,0.0001365,2]
[364139019,1749016917505,500.0,0.00024658,120]
[364139020,1749016933635,501.0,0.00024658,120]
[364139075,1749017252502,150.5,0.0002328,120]
[364139078,1749017252998,150.5,0.0002327,120]
[364139079,1749017253485,285.4,0.0002326,120]
[364139080,1749017298621,197.606412,0.00013699,2]
[364139082,1749017309762,2000.0,0.00020428,120]
[364139104,1749017367474,1372.92370486,0.00024127,120]
[364139145,1749017438081,-415.045453,0.00019026,2]
[364139922,1749017446416,-4010.68676539,0.00019218,2]
[364139924,1749017446426,-229.45591648,0.00019881,2]
[364139926,1749017446436,-423.69433488,0.00019881,2]
[364139928,1749017446446,-160.0,0.00019881,2]
[364139930,1749017446457,-197.606412,0.00020187,2]
[364139932,1749017446466,-445.72485691,0.00020331,2]
[364143704,1749017545627,1162.03,0.00024657,120]
[364143705,1749017603569,273.0,0.00024127,120]
[364143712,1749017873111,200.0,0.00024649,120]
[364143716,1749018134159,866.87,0.00024658,120]
[364143718,1749018308769,2000.0,0.00020072,120]
[364143720,1749018323901,195.741472,0.00013699,2]
[364143744,1749018472279,192.34089021,0.000246,120]
[364143745,1749018496261,267.13140078,0.00024128,120]
[364143746,1749018498858,543.23824061,0.00024128,120]
[364143747,1749018505091,911.83205643,0.00024128,120]
[364143748,1749018508215,549.14385713,0.00024128,120]
[364143749,1749018513658,841.05281369,0.00024128,120]
[364143750,1749018514539,685.2628485,0.00024128,120]
[364143751,1749018515844,240.82074905,0.00024128,120]
[364143752,1749018516954,399.70159267,0.0002,120]
[364143753,1749018517062,241.07087245,0.00024128,120]
[364143754,1749018517692,969.49823269,0.00024128,120]
[364143755,1749018518306,835.33058236,0.00024128,120]
[364143756,1749018518453,2000.0,0.00024128,120]
[364143757,1749018519114,1095.74236148,0.00024128,120]
[364143759,1749018519863,355.19941203,0.00024108,120]
[364143760,1749018520943,1789.79683246,0.00024,120]
[364143762,1749018521825,1018.5183109,0.00024128,120]
[364143763,1749018522037,1003.04497979,0.00024128,120]
[364143764,1749018522719,462.31144274,0.00024128,120]
[364143765,1749018522760,288.44321248,0.00024128,120]
[364143766,1749018522816,1104.12487418,0.00024128,120]
[364143767,1749018523109,1556.36502885,0.00024128,120]
[364143768,1749018523484,258.64498855,0.00024128,120]
[364143769,1749018523708,622.23156096,0.00024128,120]
[364143770,1749018523741,424.67266398,0.00024128,120]
[364143771,1749018523801,242.35979101,0.00024128,120]
[364143772,1749018523900,214.95291397,0.00024128,120]
[364143774,1749018525048,315.56925753,0.00024128,120]
[364143775,1749018525157,202.85399986,0.00024128,120]
[364143777,1749018526458,474.94540592,0.00024128,120]
[364143778,1749018526514,487.9402149,0.00024128,120]
[364143779,1749018526645,217.69134518,0.0001536,120]
[364143780,1749018527459,532.01497076,0.00024128,120]
[364143782,1749018528399,218.41506792,0.00024128,120]
[364143783,1749018528687,200.8739904,0.00024128,120]
[364143784,1749018537509,27981.18483321,0.000155,2]
[364143794,1749018570467,299.99999901,0.00015,2]
[364143815,1749018632445,-229.45591648,0.00019986,2]
[364143816,1749018632454,-157.64596317,0.00019995,2]
[364143817,1749018632464,-973.75482545,0.0002,2]
[364143818,1749018632474,-195.741472,0.00020187,2]
[364143819,1749018632483,-423.69433488,0.00020329,2]
[364143820,1749018632493,-700.0,0.00020331,2]
[364143821,1749018632502,-174.985972,0.00020581,2]
[364143822,1749018632511,-160.0,0.00020609,2]
[364143823,1749018632520,-440.0,0.00020612,2]
[364143824,1749018632529,-440.0,0.00020612,2]
[364143825,1749018632539,-207.4,0.00020614,2]
[364143826,1749018632549,-440.0,0.00020886,2]
[364143827,1749018632558,-77.63267695,0.00020886,2]
[364143828,1749018632568,-300.0,0.00020886,2]
[364143829,1749018632579,-62.36732305,0.00020886,2]
[364143830,1749018632589,-440.0,0.0002116,2]
[364143831,1749018632598,-440.0,0.0002116,2]
[364143832,1749018632607,-400.0,0.00021388,2]
[364143833,1749018632616,-440.0,0.00021426,2]
[364143834,1749018632626,-700.0,0.00021427,2]
[364143835,1749018632635,-300.0,0.00021433,2]
[364143836,1749018632644,-440.0,0.00021434,2]
[364143837,1749018632653,-440.0,0.00021434,2]
[364143838,1749018632662,-513.85908739,0.00021486,2]
[364143839,1749018632671,-440.0,0.00021486,2]
[364143840,1749018632681,-300.01710738,0.00021486,2]
[364143841,1749018632697,-129.98289262,0.00021486,2]
[364143842,1749018632707,-1834.69088576,0.00021486,3]
[364143844,1749018632716,-520.86206609,0.00021487,2]
[364143909,1749018638383,-440.0,0.00021486,2]
[364143911,1749018638394,-560.0,0.00021487,2]
[364143918,1749018638458,-5179.47040953,0.00021487,2]
[364143921,1749018638471,-1063.1461381,0.00021487,2]
[364143923,1749018638483,-18997.45490776,0.00021487,2]
[364143931,1749018638548,-5542.93412023,0.00021487,2]
[364144119,1749018640635,-26108.73445711,0.00021487,2]
[364144121,1749018640645,-500.0,0.00021487,2]
[364144123,1749018640655,-500.0,0.00021487,2]
[364144125,1749018640664,-500.0,0.00021487,2]
[364144127,1749018640674,-500.0,0.00021487,2]
[364144129,1749018640685,-500.0,0.00021487,2]
[364144131,1749018640694,-500.0,0.00021487,2]
[364144133,1749018640704,-5000.0,0.00021487,2]
[364144135,1749018640714,-500.0,0.00021487,2]
[364144137,1749018640724,-500.0,0.00021487,2]
[364144139,1749018640734,-373.98981618,0.00021487,2]
[364144141,1749018640744,-500.0,0.00021487,2]
[364144143,1749018640754,-500.0,0.00021487,2]
[364144145,1749018640763,-500.0,0.00021487,2]
[364144147,1749018640773,-500.0,0.00021487,2]
[364144149,1749018640783,-500.0,0.00021487,2]
[364144151,1749018640794,-500.0,0.00021487,2]
[364144153,1749018640803,-500.0,0.00021487,2]
[364144155,1749018640813,-500.0,0.00021487,2]
[364144157,1749018640823,-500.0,0.00021487,2]
[364144160,1749018640832,-500.0,0.00021487,2]
[364144162,1749018640842,-500.0,0.00021487,2]
[364144163,1749018640851,-430.0,0.00021499,2]
[364144165,1749018640861,-440.0,0.00021499,2]
[364144168,1749018640870,-1193.13360554,0.000215,30]
[364144170,1749018640881,-1152.725362,0.00021559,3]
[364144172,1749018640891,-440.0,0.000217,2]
[364144174,1749018640900,-440.0,0.00021708,2]
[364144176,1749018640909,-440.0,0.0002176,2]
[364144178,1749018640918,-440.0,0.0002176,2]
[364144180,1749018640929,-420.0,0.00021773,2]
[364144182,1749018640939,-430.0,0.00021863,2]
[364144184,1749018640949,-430.0,0.00021863,2]
[364144186,1749018640958,-440.0,0.00021863,2]
[364144188,1749018640968,-557.72128084,0.00021863,2]
[364144190,1749018640977,-440.0,0.00021863,2]
[364144192,1749018640987,-223.216,0.00021865,2]
[364144194,1749018640996,-400.0,0.000219,2]
[364144196,1749018641005,-440.0,0.00021974,2]
[364144198,1749018641015,-589.56,0.00021979,3]
[364144200,1749018641025,-1009.79,0.00021979,10]
[364144202,1749018641034,-1126.12947833,0.00021979,10]
[364144434,1749018643285,-261.68052167,0.00021979,10]
[364144436,1749018643296,-1156.51,0.00021979,10]
[364144438,1749018643306,-440.0,0.00021982,2]
[364144440,1749018643316,-215.0738,0.00021983,2]
[364144442,1749018643325,-218.78871564,0.00021989,2]
[364144666,1749018646545,-2519.3797251,0.000219,2]
[364148895,1749018726098,500.0,0.00024658,120]
[364148896,1749018734070,500.0,0.00024658,120]
[364148897,1749018746171,500.0,0.00024658,120]
[364148900,1749018783094,280.07893,0.00024658,120]
[364148904,1749018885722,585.40640656,0.00021,60]
[364148911,1749019396221,1834.1202814,0.00020092,120]
[364148914,1749019450375,193.077191,0.00013699,2]
[364148962,1749019547991,10000.0,0.0001551,2]
[364148991,1749019832839,-2386.53604193,0.000189,2]
[364148992,1749019832849,-186.276195,0.00019674,2]
[364148993,1749019832859,-875.7916393,0.00019733,2]
[364148994,1749019832869,-193.077191,0.00020187,2]
[364148995,1749019832881,-800.0,0.00020331,2]
[364148996,1749019832891,-151.0,0.00020601,2]
[364148997,1749019832901,-1200.0,0.00020608,2]
[364148998,1749019832910,-160.0,0.00020608,2]
[364148999,1749019832920,-160.0,0.00020608,2]
[364149000,1749019832929,-229.45591648,0.00020608,2]
[364149001,1749019832939,-842.5625,0.00020608,2]
[364149002,1749019832949,-212.90465545,0.00020609,2]
[364149003,1749019832958,-423.69433488,0.00020609,2]
[364149004,1749019832968,-160.0,0.00020609,2]
[364149005,1749019832978,-216.15577848,0.0002061,2]
[364149006,1749019832989,-83.84422152,0.0002061,2]
[364149007,1749019832999,-300.0,0.00020612,2]
[364149008,1749019833009,-445.00578594,0.00020613,2]
[364149009,1749019833019,-430.0,0.00020613,2]
[364149010,1749019833029,-440.0,0.00020613,2]
[364149011,1749019833039,-440.0,0.00020613,2]
[364149012,1749019833049,-207.4,0.00020614,2]
[364149013,1749019833059,-156.587,0.00020656,2]
[364149014,1749019833069,-162.380719,0.00020711,2]
[364149015,1749019833079,-168.3888056,0.00020766,2]
[364149016,1749019833090,-174.61919141,0.00020821,2]
[364149017,1749019833100,-440.0,0.00020872,2]
[364149018,1749019833109,-500.0,0.00020872,2]
[364149019,1749019833119,-500.0,0.00020872,2]
[364149020,1749019833129,-500.0,0.00020872,2]
[364149021,1749019833139,-500.0,0.00020872,2]
[364149022,1749019833148,-500.0,0.00020872,2]
[364149023,1749019833158,-500.0,0.00020872,2]
[364149024,1749019833168,-2566.2517603,0.00020872,2]
[364149025,1749019833180,-2433.7482397,0.00020872,2]
[364149026,1749019833190,-500.0,0.00020872,2]
[364149027,1749019833199,-500.0,0.00020872,2]
[364149028,1749019833208,-500.0,0.00020872,2]
[364149029,1749019833218,-500.0,0.00020872,2]
[364149030,1749019833227,-500.0,0.00020872,2]
[364149031,1749019833237,-500.0,0.00020872,2]
[364149032,1749019833246,-500.0,0.00020872,2]
[364149033,1749019833256,-500.0,0.00020872,2]
[364149034,1749019833266,-500.0,0.00020872,2]
[364149035,1749019833276,-181.08010149,0.00020876,2]
[364149036,1749019833286,-430.0,0.00020884,2]
[364149037,1749019833295,-430.0,0.00020884,2]
[364149038,1749019833305,-442.24007679,0.00020884,2]
[364149039,1749019833315,-440.0,0.00020884,2]
[364149040,1749019833325,-460.62282595,0.00020884,2]
[364149041,1749019833335,-440.0,0.00020884,2]
[364149042,1749019833345,-441.65035572,0.00020884,2]
[364149043,1749019833355,-440.0,0.00020884,2]
[364149044,1749019833365,-430.0,0.00020884,2]
[364149045,1749019833376,-440.0,0.00020884,2]
[364149046,1749019833387,-442.07956596,0.00020884,2]
[364149047,1749019833397,-736.34,0.00020884,2]
[364149048,1749019833407,-440.0,0.00020884,2]
[364149049,1749019833417,-440.0,0.00020884,2]
[364149050,1749019833428,-430.0,0.00020884,2]
[364149051,1749019833439,-440.0,0.00020884,2]
[364149052,1749019833449,-440.0,0.00020884,2]
[364149053,1749019833459,-439.90100698,0.00020884,2]
[364149054,1749019833469,-440.0,0.00020884,2]
[364149055,1749019833479,-440.0,0.00020884,2]
[364149056,1749019833490,-460.74,0.00020884,2]
[364149057,1749019833500,-440.0,0.00020884,2]
[364149058,1749019833511,-440.0,0.00020884,2]
[364149059,1749019833521,-440.0,0.00020884,2]
[364149060,1749019833711,-440.0,0.00020884,2]
[364149061,1749019833722,-440.0,0.00020884,2]
[364149062,1749019833733,-440.0,0.00020885,2]
[364149063,1749019833743,-448.06695278,0.00020885,2]
[364149064,1749019833755,-440.0,0.00020885,2]
[364149065,1749019833769,-205.53367335,0.00020885,2]
[364149066,1749019833779,-440.0,0.00020885,2]
[364149067,1749019833789,-467.08467851,0.00020885,2]
[364149068,1749019833799,-406.60299656,0.00020885,2]
[364149069,1749019833809,-440.0,0.00020885,2]
[364149070,1749019833819,-406.5029728,0.00020885,2]
[364149071,1749019833830,-440.0,0.00020885,2]
[364149072,1749019833840,-440.0,0.00020885,2]
[364149073,1749019833851,-500.0,0.00020885,2]
[364149074,1749019833860,-383.21356054,0.00020885,2]
[364149075,1749019833872,-440.0,0.00020885,2]
[364149076,1749019833885,-440.0,0.00020885,2]
[364149077,1749019833895,-570.90841972,0.00020885,2]
[364149078,1749019833905,-430.0,0.00020885,2]
[364149079,1749019833915,-440.0,0.00020885,2]
[364149080,1749019833925,-440.0,0.00020885,2]
[364149081,1749019833936,-430.0,0.00020885,2]
[364149082,1749019833945,-440.0,0.00020885,2]
[364149083,1749019833956,-440.0,0.00020885,2]
[364149084,1749019833966,-440.0,0.00020885,2]
[364149085,1749019833976,-440.0,0.00020885,2]
[364149086,1749019833986,-440.0,0.00020885,2]
[364149087,1749019833996,-430.0,0.00020885,2]
[364149088,1749019834006,-440.0,0.00020885,2]
[364149089,1749019834015,-440.0,0.00020885,2]
[364149090,1749019834025,-430.0,0.00020885,2]
[364149091,1749019834035,-440.0,0.00020885,2]
[364149092,1749019834045,-440.0,0.00020885,2]
[364149093,1749019834055,-440.0,0.00020885,2]
[364149094,1749019834065,-356.85291492,0.00020885,2]
[364149095,1749019834075,-440.0,0.00020885,2]
[364149096,1749019834085,-440.0,0.00020885,2]
[364149097,1749019834094,-440.0,0.00020885,2]
[364149098,1749019834104,-440.0,0.00020885,2]
[364149099,1749019834114,-440.0,0.00020885,2]
[364149100,1749019834124,-430.0,0.00020885,2]
[364149101,1749019834135,-440.0,0.00020885,2]
[364149102,1749019834145,-440.0,0.00020885,2]
[364149103,1749019834155,-440.0,0.00020885,2]
[364149104,1749019834165,-470.84631018,0.00020885,2]
[364149105,1749019834175,-430.0,0.00020885,2]
[364149106,1749019834185,-440.0,0.00020885,2]
[364149107,1749019834194,-440.0,0.00020885,2]
[364149108,1749019834204,-440.0,0.00020885,2]
[364149109,1749019834214,-440.0,0.00020885,2]
[364149110,1749019834224,-151.0,0.00020886,2]
[364149111,1749019834234,-500.0,0.00020886,2]
[364149112,1749019834243,-165.75494796,0.00020886,2]
[364149113,1749019834253,-440.0,0.00020886,2]
[364149114,1749019834262,-3795.19,0.00020886,2]
[364149115,1749019834272,-440.0,0.00020886,2]
[364149116,1749019834283,-440.0,0.00020886,2]
[364149117,1749019834293,-210.403,0.00020887,2]
[364149118,1749019834303,-440.0,0.00020887,2]
[364149119,1749019834313,-440.0,0.00020887,2]
[364149120,1749019834323,-611.49449331,0.00020887,2]
[364149121,1749019834332,-151.0,0.00020913,2]
[364149122,1749019834342,-629.93962105,0.00020913,2]
[364149123,1749019834352,-187.78006525,0.00020931,2]
[364149124,1749019834362,-200.91153923,0.00020941,2]
[364149125,1749019834373,-194.72792766,0.00020986,2]
[364149126,1749019834383,-201.93286099,0.00021041,2]
[364149127,1749019834392,-209.40437684,0.00021096,2]
[364149128,1749019834402,-440.0,0.00021146,2]
[364149129,1749019834412,-217.15233878,0.00021151,2]
[364149130,1749019834422,-440.0,0.00021158,2]
[364149131,1749019834432,-443.18138622,0.00021158,2]
[364149132,1749019834442,-440.0,0.00021158,2]
[364149133,1749019834452,-440.0,0.00021158,2]
[364149134,1749019834462,-736.34,0.00021158,2]
[364149135,1749019834472,-440.0,0.00021158,2]
[364149136,1749019834482,-440.0,0.00021158,2]
[364149137,1749019834493,-440.0,0.00021158,2]
[364149138,1749019834504,-440.0,0.00021158,2]
[364149139,1749019834514,-440.0,0.00021158,2]
[364149140,1749019834525,-440.0,0.00021158,2]
[364149141,1749019834535,-460.74,0.00021158,2]
[364149142,1749019834544,-536.7536063,0.00021158,2]
[364149143,1749019834554,-420.0,0.00021158,2]
[364149144,1749019834564,-420.0,0.00021158,2]
[364149145,1749019834575,-440.0,0.00021158,2]
[364149146,1749019834585,-440.0,0.00021158,2]
[364149147,1749019834596,-440.0,0.00021159,2]
[364149148,1749019834611,-440.0,0.00021159,2]
[364149149,1749019834623,-420.0,0.00021159,2]
[364149150,1749019834633,-462.40176926,0.00021159,2]
[364149151,1749019834644,-440.0,0.00021159,2]
[364149152,1749019834654,-440.0,0.00021159,2]
[364149153,1749019834664,-440.0,0.00021159,2]
[364149154,1749019834673,-440.0,0.00021159,2]
[364149155,1749019834682,-440.0,0.00021159,2]
[364149156,1749019834692,-270.0,0.00021159,2]
[364149157,1749019834702,-440.0,0.00021159,2]
[364149158,1749019834712,-440.0,0.00021159,2]
[364149159,1749019834721,-440.0,0.00021159,2]
[364149160,1749019834731,-440.0,0.00021159,2]
[364149161,1749019834740,-440.0,0.00021159,2]
[364149162,1749019834750,-440.0,0.00021159,2]
[364149163,1749019834759,-440.0,0.00021159,2]
[364149164,1749019834769,-440.0,0.00021159,2]
[364149165,1749019834779,-440.0,0.00021159,2]
[364149166,1749019834789,-420.0,0.00021159,2]
[364149167,1749019834798,-420.0,0.00021159,2]
[364149168,1749019834808,-440.0,0.00021159,2]
[364149169,1749019834818,-440.0,0.00021159,2]
[364149170,1749019834828,-440.0,0.00021159,2]
[364149171,1749019834838,-440.0,0.00021159,2]
[364149172,1749019834851,-440.0,0.00021159,2]
[364149173,1749019834861,-440.0,0.00021159,2]
[364149174,1749019834873,-420.0,0.00021159,2]
[364149175,1749019834888,-198.21779657,0.00021159,2]
[364149176,1749019834902,-420.0,0.00021159,2]
[364149177,1749019834912,-440.0,0.00021159,2]
[364149178,1749019834921,-440.0,0.0002116,2]
[364149179,1749019834931,-440.0,0.0002116,2]
[364149180,1749019834942,-440.0,0.0002116,2]
[364149181,1749019834951,-440.0,0.0002116,2]
[364149182,1749019834961,-3795.19,0.0002116,2]
[364149183,1749019834971,-440.0,0.0002116,2]
[364149184,1749019834984,-440.0,0.0002116,2]
[364149185,1749019834998,-440.0,0.0002116,2]
[364149186,1749019835013,-440.0,0.0002116,2]
[364149187,1749019835027,-440.0,0.0002116,2]
[364149188,1749019835040,-440.0,0.0002116,2]
[364149189,1749019835052,-440.0,0.0002116,2]
[364149190,1749019835067,-440.0,0.0002116,2]
[364149191,1749019835081,-440.0,0.0002116,2]
[364149192,1749019835093,-487.11,0.0002116,2]
[364149193,1749019835106,-440.0,0.00021161,2]
[364149194,1749019835121,-440.0,0.00021161,2]
[364149195,1749019835133,-225.18697532,0.00021206,2]
[364149196,1749019835147,-233.51889341,0.00021261,2]
[364149197,1749019835159,-242.15909246,0.00021316,2]
[364149198,1749019835172,-368.27591601,0.00021371,2]
[364149199,1749019835185,-963.76,0.00021417,10]
[364149200,1749019835198,-803.13,0.00021417,10]
[364149201,1749019835211,-440.0,0.0002142,2]
[364149202,1749019835223,-5000.0,0.0002142,2]
[364149203,1749019835235,-500.0,0.00021426,2]
[364149204,1749019835247,-800.0,0.00021427,2]
[364149205,1749019835260,-440.0,0.00021432,2]
[364149206,1749019835272,-410.0,0.00021432,2]
[364149207,1749019835286,-440.0,0.00021432,2]
[364149208,1749019835299,-736.34,0.00021432,2]
[364149209,1749019835311,-440.0,0.00021432,2]
[364149210,1749019835324,-246.09,0.00021432,2]
[364149211,1749019835335,-440.0,0.00021432,2]
[364149212,1749019835347,-440.0,0.00021432,2]
[364149213,1749019835359,-502.82940769,0.00021432,2]